{"text_format":"1","workbook":"xlsx","n_sheets":5,"sheets":["Bilgiler","İzlenebilirlik","Rapor","EGT Testi","PERFORMANS Testi"],"not_rendered":{"charts":0,"images":5,"macros":1,"external_links":0,"defined_names":1,"comments":0,"pivot_tables":0},"unopened":[],"bounds":{"document_bytes":16777216,"sheet_cells":100000,"rows_first":2000,"rows_last":500,"rows_between":2000,"halvings":0,"cell_chars":16384,"cell_head_chars":4096},"cells_cut":0,"cells_raw":0,"read":"whole","date_system":"1900"}

{"sheet":"Bilgiler","index":0,"n_rows":28,"n_cols":25,"rows_kept":28,"cut":false,"hidden":false,"merged":[]}
["Id","Birlik","SağlıkTesisi","Künye","RaporNo","Tür","Cihaz","Üretici","Model","Seri","Lokasyon","KalTarihi","GeçTarihi","RaporTarihi","KalibrasyonYapan","Ünvanı","ZimmetSahibi","NezaretEden","FizikselKontrol","Uygun","Uygunsuz","Sınırlı","UzmanGörüşü","Yorum","Not"]
[1]
[]
[null,"GENEL RAPOR BİLGİLERİ"]
[null,"Sayfa Sayısı",4]
[null,"Test Sayısı",10]
[null,"Biyomedikal Tür","EKG (ELEKTRO KARDİYO GRAFİ)"]
[null,"Lab. Sorumlusu","NAZİF İLKER SEZDİ"]
[null,"Ünvanı","Biyomedikal Yük. Müh. - BScEE - MBA"]
[]
[null,"STANDART BİLGİLERİ"]
[null,"1. Standart","TS ISO-60601-1"]
[null,"1. Standart Başlığı","ELEKTRİKLİ TIBBİ DONANIM – Bölüm 1 - Temel Güvenlik ve Gerekli Performans İçin Genel Kurallar"]
[null,"1. Test Madde No","Koruyucu Topraklama Direnci (Madde 8.6)\nTopraklama Kaçak Akımı - Hasta Yardımcı Kaçak Akımı (Madde 8.7)\nGövde Kaçak Akımı (Madde 8.7) - Hasta Kaçak Akımı (Madde 8.7)\nUygulama Parçalarında Kaçak Akımı (Madde 8.7)\nŞebeke Gerilimi ( Madde 8 ) - Cihaz Akımı (Madde 8 )"]
[null,"1. Test Başlığı","Koruyucu Topraklama Direnci, Topraklama Kaçak Akımı, Şasi Kaçak Akımı, Hasta Kaçak Akımı, Hasta Yardımcı Kaçak Akımı, Uygulama Parçalarında Kaçak Akımı, Şebeke Gerilimi, Cihaz Akımı"]
[null,"1. Revizyon Tarihi","2010-06-01"]
[null,null,"  "]
[null,"2. Standart","TS EN 60601-2-27  "]
[null,"2. Standart Başlığı","ELEKTROKARDİYOGRAF İZLEME DONANIMININ GEREKLİ PERFORMANSI VE GÜVENLİĞİ İLE İLGİLİ BELİRLİ ÖZELLİKLER"]
[null,"2. Test Madde No","EKG Performans Testi TS EN 60601-2-27 (Madde 50.102.15)\nEKG Genlik Testi TS EN 60601-2-27 (Madde 50.102.15)\nEKG Frekans Testi TS EN 60601-2-27 (Madde 50.102.8)\nEKG Arrythmia Testi TS EN 60601-2-27 (Madde 56.8)\nEKG ST Testi TS EN 60601-2-27 (Madde 50.102.15)\nEKG Yazıcı Testi TS EN 60601-2-27 (Madde 50.102.16)"]
[null,"2. Test Başlığı","  "]
[null,"2. Revizyon Tarihi","Ara.2007"]
[null,null,"  "]
[null,"3. Standart","  "]
[null,"3. Standart Başlığı","  "]
[null,"3. Test Madde No","  "]
[null,"3. Test Başlığı","  "]
[null,"3. Revizyon Tarihi","  "]

{"sheet":"İzlenebilirlik","index":1,"n_rows":4,"n_cols":10,"rows_kept":4,"cut":false,"hidden":false,"merged":[]}
["Id","Kodu","Cihaz","Üretici","Model","Seri","İzlenebilirlik","SertifikaNo","KalTarihi","GecTarihi"]
[1,"K125","ELEKTRİKSEL GÜVENLİK ANALİZÖRÜ","DATREND","VPAD MINI","VPM18040013","UML","UE-2856","2023-04-14","2024-04-14"]
[2,"K170","HASTA SİMÜLATÖRÜ","DATREND","VPAD-A1","VBU17050101","MEDİBİM","LAB-0623-003","2023-06-19","2024-06-19"]
[3,"-","-","-","-","-","-","-","1991-09-20","1991-09-20"]

{"sheet":"Rapor","index":2,"n_rows":258,"n_cols":37,"rows_kept":258,"cut":false,"hidden":false,"merged":[[7,32,8,36],[9,32,10,36],[11,32,12,36],[15,2,15,8],[15,10,16,36],[16,2,16,8],[23,2,23,8],[25,2,25,8],[25,10,25,38],[26,2,26,8],[28,2,28,8],[28,10,28,36],[17,10,18,37],[19,2,19,8],[19,10,19,37],[20,2,20,8],[22,2,22,8],[22,10,22,37],[34,2,34,8],[34,10,34,17],[34,25,34,34],[35,2,35,8],[49,2,49,4],[49,8,49,11],[49,15,49,22],[49,26,49,35],[29,2,29,8],[31,2,31,8],[31,10,31,17],[31,19,31,24],[31,25,31,34],[32,2,32,8],[32,19,32,23],[61,24,61,33],[64,32,65,36],[66,32,67,36],[68,32,69,36],[75,2,75,9],[75,10,75,12],[50,2,50,4],[50,8,50,11],[50,15,50,22],[50,26,50,35],[51,8,51,11],[51,15,51,22],[51,26,51,35],[120,2,120,10],[120,11,120,15],[120,16,120,20],[120,21,120,25],[120,26,120,30],[120,31,120,34],[120,35,120,38],[117,2,117,10],[117,11,117,15],[117,16,117,20],[117,21,117,25],[117,26,117,30],[117,31,117,34],[117,35,117,38],[118,2,118,10],[118,11,118,15],[118,16,118,20],[118,21,118,25],[118,26,118,30],[127,24,127,33],[130,32,131,36],[132,32,133,36],[134,32,135,36],[121,2,121,10],[121,11,121,15],[121,16,121,20],[121,21,121,25],[121,26,121,30],[121,31,121,34],[121,35,121,38],[122,2,122,10],[122,11,122,15],[122,16,122,20],[122,21,122,25],[122,26,122,30],[257,24,257,33],[193,24,193,33],[196,32,197,36],[198,32,199,36],[200,32,201,36],[162,6,162,31],[159,29,159,31],[160,29,160,31],[146,26,146,28],[146,29,146,31],[147,26,147,28],[151,26,151,28],[151,29,151,31],[152,6,152,13],[152,14,152,17],[152,18,152,21],[152,22,152,25],[152,26,152,28],[152,29,152,31],[149,26,149,28],[149,29,149,31],[150,6,150,13],[150,14,150,17],[150,18,150,21],[144,14,144,17],[144,18,144,21],[144,22,144,25],[142,6,142,13],[142,14,142,17],[142,18,142,21],[142,22,142,25],[245,2,249,5],[245,6,249,36],[142,26,142,28],[142,29,142,31],[143,6,143,13],[143,14,143,17],[143,18,143,21],[143,22,143,25],[143,26,143,28],[143,29,143,31],[147,18,147,21],[147,22,147,25],[146,6,146,13],[146,14,146,17],[146,18,146,21],[146,22,146,25],[144,6,144,13],[140,6,140,31],[141,6,141,13],[141,14,141,17],[141,18,141,21],[141,22,141,25],[141,26,141,28],[141,29,141,31],[147,29,147,31],[148,6,148,13],[148,14,148,17],[148,18,148,21],[148,22,148,25],[148,26,148,28],[148,29,148,31],[144,26,144,28],[144,29,144,31],[145,6,145,13],[145,14,145,17],[145,18,145,21],[145,22,145,25],[145,26,145,28],[145,29,145,31],[147,6,147,13],[147,14,147,17],[150,22,150,25],[150,26,150,28],[150,29,150,31],[151,6,151,13],[151,14,151,17],[151,18,151,21],[151,22,151,25],[149,6,149,13],[149,14,149,17],[149,18,149,21],[149,22,149,25],[153,18,153,21],[153,22,153,25],[153,26,153,28],[153,29,153,31],[154,6,154,13],[154,14,154,17],[154,18,154,21],[154,22,154,25],[154,26,154,28],[154,29,154,31],[153,6,153,13],[153,14,153,17],[157,29,157,31],[158,6,158,13],[158,14,158,17],[158,18,158,21],[158,22,158,25],[158,26,158,28],[158,29,158,31],[155,26,155,28],[155,29,155,31],[156,6,156,13],[156,14,156,17],[156,18,156,21],[156,22,156,25],[156,26,156,28],[156,29,156,31],[157,6,157,13],[157,14,157,17],[157,18,157,21],[157,22,157,25],[155,6,155,13],[155,14,155,17],[155,18,155,21],[155,22,155,25],[159,18,159,21],[159,22,159,25],[159,26,159,28],[160,6,160,13],[160,14,160,17],[160,18,160,21],[160,22,160,25],[160,26,160,28],[157,26,157,28],[159,6,159,13],[159,14,159,17],[167,25,167,28],[167,29,167,31],[168,14,168,17],[168,18,168,21],[168,22,168,24],[168,25,168,28],[168,29,168,31],[165,29,165,31],[166,14,166,17],[166,18,166,21],[166,22,166,24],[166,25,166,28],[166,29,166,31],[165,14,165,17],[165,18,165,21],[165,22,165,24],[165,25,165,28],[167,14,167,17],[167,18,167,21],[167,22,167,24],[169,14,169,17],[169,18,169,21],[169,22,169,24],[169,25,169,28],[169,29,169,31],[170,14,170,17],[170,18,170,21],[170,22,170,24],[170,25,170,28],[170,29,170,31],[171,14,171,17],[171,18,171,21],[171,22,171,24],[171,25,171,28],[171,29,171,31],[184,6,184,17],[184,20,184,31],[173,6,173,31],[174,6,175,13],[174,14,175,17],[165,6,171,13],[174,18,175,21],[174,22,175,24],[174,25,175,28],[174,29,175,31],[176,6,182,13],[176,14,176,17],[176,18,176,21],[176,22,176,24],[176,25,176,28],[176,29,176,31],[177,14,177,17],[177,18,177,21],[177,22,177,24],[163,14,164,17],[163,18,164,21],[163,22,164,24],[163,25,164,28],[163,29,164,31],[163,6,164,13],[207,6,207,17],[207,20,207,31],[208,6,208,13],[208,14,208,17],[208,20,208,27],[208,28,208,31],[186,6,186,10],[186,11,186,14],[186,15,186,17],[186,20,186,24],[186,25,186,28],[186,29,186,31],[185,6,185,10],[185,11,185,14],[185,15,185,17],[185,20,185,24],[185,25,185,28],[185,29,185,31],[177,25,177,28],[177,29,177,31],[178,14,178,17],[178,18,178,21],[178,22,178,24],[178,25,178,28],[178,29,178,31],[179,14,179,17],[179,18,179,21],[179,22,179,24],[179,25,179,28],[179,29,179,31],[180,14,180,17],[180,18,180,21],[180,22,180,24],[180,25,180,28],[180,29,180,31],[211,6,211,17],[211,20,211,31],[212,6,212,13],[212,14,212,17],[212,20,212,27],[212,28,212,31],[181,14,181,17],[181,18,181,21],[181,22,181,24],[181,25,181,28],[181,29,181,31],[182,14,182,17],[182,18,182,21],[182,22,182,24],[182,25,182,28],[182,29,182,31],[209,6,209,13],[209,14,209,17],[209,20,209,27],[209,28,209,31],[216,6,216,17],[213,6,213,13],[213,14,213,17],[213,20,213,27],[213,28,213,31],[214,6,214,13],[214,14,214,17],[214,20,214,27],[214,28,214,31],[223,6,223,13],[223,14,223,17],[224,6,224,13],[224,14,224,17],[226,6,226,31],[227,6,227,28],[227,29,227,31],[220,6,220,13],[220,14,220,17],[221,6,221,13],[221,14,221,17],[222,6,222,13],[222,14,222,17],[232,6,232,28],[232,29,232,31],[233,6,233,28],[233,29,233,31],[228,6,228,28],[228,29,228,31],[229,6,229,28],[229,29,229,31],[230,6,230,28],[230,29,230,31],[218,14,218,17],[218,6,218,13],[217,14,217,17],[217,6,217,13],[240,6,240,28],[240,29,240,31],[241,6,241,28],[241,29,241,31],[219,14,219,17],[219,6,219,13],[237,6,237,28],[237,29,237,31],[238,6,238,28],[238,29,238,31],[239,6,239,28],[239,29,239,31],[234,6,234,28],[234,29,234,31],[235,6,235,28],[235,29,235,31],[236,6,236,28],[236,29,236,31],[231,6,231,28],[231,29,231,31],[118,31,118,34],[118,35,118,38],[119,2,119,10],[119,11,119,15],[119,16,119,20],[119,21,119,25],[119,26,119,30],[119,31,119,34],[119,35,119,38],[122,31,122,34],[122,35,122,38],[123,2,123,10],[123,11,123,15],[123,16,123,20],[123,21,123,25],[123,26,123,30],[123,31,123,34],[123,35,123,38]]}
[]
[]
[]
[]
[]
[]
[]
[null,null,null,null,null,null,null,null,null,null,null,null,null,null,null,null,null,null,null,null,null,null,null,null,null,null,null,null,null,null,null,null,"AB-1251-T"]
[]
[null,null,null,null,null,null,null,null,null,null,null,null,null,null,null,null,null,null,null,null,null,null,null,null,null,null,null,null,null,null,null,null,{"$f":"Bilgiler!E2","v":0}]
[]
[null,null,null,null,null,null,null,null,null,null,null,null,null,null,null,null,null,null,null,null,null,null,null,null,null,null,null,null,null,null,null,null,{"$f":"Bilgiler!L2","v":"00:00:00"}]
[]
[]
[]
[null,null,"Cihazın Sahibi / Adresi",null,null,null,null,null,null,":",{"$f":"Bilgiler!C2","v":0}]
[null,null,"Customer"]
[null,null,null,null,null,null,null,null,null,null,{"$f":"CONCATENATE(\"Lokasyon: \",Bilgiler!K2,\" - \", \"Adres: \",Bilgiler!F2)","v":"Lokasyon:  - Adres: "}]
[]
[null,null,"Proje/Teklif Numarası",null,null,null,null,null,null,":",{"$f":"Bilgiler!B2","v":0}]
[null,null,"Order Number",null,null,null,null,null,null,null,null,null,null,null,null,null,null,null,null,null,null,null,null," "]
[]
[null,null,"Makine / Cihaz",null,null,null,null,null,null,":",{"$f":"Bilgiler!G2","v":0}]
[null,null,"Instrument / Device"]
[]
[null,null,"İmalatçı",null,null,null,null,null,null,":",{"$f":"Bilgiler!H2","v":0}]
[null,null,"Manufacturer"]
[]
[null,null,"Tip",null,null,null,null,null,null,":",{"$f":"Bilgiler!I2","v":0}]
[null,null,"Type"]
[]
[null,null,"Kalibrasyon Tarihi",null,null,null,null,null,null,":",{"$f":"Bilgiler!L2","v":"00:00:00"},null,null,null,null,null,null,null,null,"Seri Numarası        :",null,null,null,null,null,{"$f":"Bilgiler!J2","v":0}]
[null,null,"Date of Calibration",null,null,null,null,null,null,null,null,null,null,null,null,null,null,null,null,"Serial Number"]
[]
[null,null,"Rapor Sayfa Sayısı",null,null,null,null,null,null,":",3,null,null,null,null,null,null,null,null,"Künye Numarası    :",null,null,null,null,null,{"$f":"Bilgiler!D2","v":0}]
[null,null,"Total Number of Certificate",null,null,null,null,null,null,null,null,null,null,null,null,null,null,null,null,"Identity Number"]
[]
[]
[]
[]
[]
[]
[]
[]
[]
[]
[]
[]
[]
[null,null,"Mühür",null,null,null,null,null,"Tarih",null,null,null,null,null,null,"Deneyi Yapan",null,null,null,null,null,null,null,null,null,null,"Sorumlu Müdür"]
[null,null,"Seal",null,null,null,null,null,"Date",null,null,null,null,null,null,"Experimenter",null,null,null,null,null,null,null,null,null,null,"Responsible Manager"]
[null,null,null,null,null,null,null,null,{"$f":"Bilgiler!N2","v":"00:00:00"},null,null,null,null,null,null,{"$f":"Bilgiler!O2","v":"00:00:00"},null,null,null,null,null,null,null,null,null,null,{"$f":"Bilgiler!C8","v":"NAZİF İLKER SEZDİ"}]
[]
[]
[]
[]
[]
[]
[]
[null,"Bu sertifika, laboratuvarın yazılı izni olmadan kısmen veya tamamen kopyalanıp çoğaltılamaz. İmzasız sertifikalar geçersizdir."]
[null,"This certificate can not be fully or partly reproduced without the permission of the laboratory. Calibration certificates without signature are not valid."]
[null,"MB4001/ Yay.tar: 04.12.2008 /Rev.tar: 23.01.2024/Rev.no: 7",null,null,null,null,null,null,null,null,null,null,null,null,null,null,null,null,null,null,null,null,null,null,"Sayfa No / Number of Pages:",null,null,null,null,null,null,null,null,null,1,"/",4]
[]
[]
[null,null,null,null,null,null,null,null,null,null,null,null,null,null,null,null,null,null,null,null,null,null,null,null,null,null,null,null,null,null,null,null,{"$f":"AG8","v":"AB-1251-T"}]
[]
[null,null,null,null,null,null,null,null,null,null,null,null,null,null,null,null,null,null,null,null,null,null,null,null,null,null,null,null,null,null,null,null,{"$f":"AG10","v":0}]
[]
[null,null,null,null,null,null,null,null,null,null,null,null,null,null,null,null,null,null,null,null,null,null,null,null,null,null,null,null,null,null,null,null,{"$f":"AG12","v":"00:00:00"}]
[]
[]
[]
[]
[]
[null,null,"Test ve Deneyi Yapılan Cihaz Bilgileri :"]
[null,null,"Instrument Details"]
[null,null,"Künye No",null,null,null,null,":",{"$f":"Bilgiler!D2","v":0}]
[null,null,"Imprint No"]
[null,null,"Makine Cihaz",null,null,null,null,":",{"$f":"Bilgiler!G2","v":0}]
[null,null,"Instrument/Device"]
[null,null,"Üretici",null,null,null,null,":",{"$f":"Bilgiler!H2","v":0}]
[null,null,"Manufacturer"]
[null,null,"Tip",null,null,null,null,":",{"$f":"Bilgiler!I2","v":0}]
[null,null,"Type"]
[null,null,"Seri Numarası",null,null,null,null,":",{"$f":"Bilgiler!J2","v":0}]
[null,null,"Serial Number"]
[]
[]
[]
[]
[]
[]
[]
[]
[]
[]
[]
[]
[]
[]
[]
[]
[]
[]
[]
[]
[]
[]
[]
[]
[]
[]
[]
[]
[]
[null,null,"Kalibrasyon sırasında kullanılan referanslar ve cihazlar:"]
[null,null,"References and devices used during calibration:"]
[null,null,"Cihaz",null,null,null,null,null,null,null,null,"Marka",null,null,null,null,"Model",null,null,null,null,"Seri Numarası",null,null,null,null,"Sertifika No",null,null,null,null,"İzlenebilirlik",null,null,null,"Kalib.Tarihi"]
[null,null,"Device",null,null,null,null,null,null,null,null,"Marka",null,null,null,null,"Model",null,null,null,null,"Serial Num.",null,null,null,null,"Certificate Number",null,null,null,null,"Traceability",null,null,null,"Cal.Date"]
[null,null,{"$f":"İzlenebilirlik!C2","v":"ELEKTRİKSEL GÜVENLİK ANALİZÖRÜ"},null,null,null,null,null,null,null,null,{"$f":"İzlenebilirlik!D2","v":"DATREND"},null,null,null,null,{"$f":"İzlenebilirlik!E2","v":"VPAD MINI"},null,null,null,null,{"$f":"İzlenebilirlik!F2","v":"VPM18040013"},null,null,null,null,{"$f":"İzlenebilirlik!H2","v":"UE-2856"},null,null,null,null,{"$f":"İzlenebilirlik!G2","v":"UML"},null,null,null,{"$f":"IF(İzlenebilirlik!C2=\"-\",\"-\",İzlenebilirlik!I2)","v":"2023-04-14"}]
[null,null,{"$f":"İzlenebilirlik!C3","v":"HASTA SİMÜLATÖRÜ"},null,null,null,null,null,null,null,null,{"$f":"İzlenebilirlik!D3","v":"DATREND"},null,null,null,null,{"$f":"İzlenebilirlik!E3","v":"VPAD-A1"},null,null,null,null,{"$f":"İzlenebilirlik!F3","v":"VBU17050101"},null,null,null,null,{"$f":"İzlenebilirlik!H3","v":"LAB-0623-003"},null,null,null,null,{"$f":"İzlenebilirlik!G3","v":"MEDİBİM"},null,null,null,{"$f":"IF(İzlenebilirlik!C3=\"-\",\"-\",İzlenebilirlik!I3)","v":"2023-06-19"}]
[null,null,{"$f":"İzlenebilirlik!C4","v":"-"},null,null,null,null,null,null,null,null,{"$f":"İzlenebilirlik!D4","v":"-"},null,null,null,null,{"$f":"İzlenebilirlik!E4","v":"-"},null,null,null,null,{"$f":"İzlenebilirlik!F4","v":"-"},null,null,null,null,{"$f":"İzlenebilirlik!H4","v":"-"},null,null,null,null,{"$f":"İzlenebilirlik!G4","v":"-"},null,null,null,{"$f":"IF(İzlenebilirlik!C4=\"-\",\"-\",İzlenebilirlik!I4)","v":"-"}]
[]
[]
[]
[null,"Bu sertifika, laboratuvarın yazılı izni olmadan kısmen veya tamamen kopyalanıp çoğaltılamaz. İmzasız sertifikalar geçersizdir."]
[null,"This certificate can not be fully or partly reproduced without the permission of the laboratory. Calibration certificates without signature are not valid."]
[null,"MB4001/ Yay.tar: 04.12.2008 /Rev.tar: 23.01.2024/Rev.no: 7",null,null,null,null,null,null,null,null,null,null,null,null,null,null,null,null,null,null,null,null,null,null,"Sayfa No / Number of Pages:",null,null,null,null,null,null,null,null,null,2,"/",4]
[]
[]
[null,null,null,null,null,null,null,null,null,null,null,null,null,null,null,null,null,null,null,null,null,null,null,null,null,null,null,null,null,null,null,null,{"$f":"AG8","v":"AB-1251-T"}]
[]
[null,null,null,null,null,null,null,null,null,null,null,null,null,null,null,null,null,null,null,null,null,null,null,null,null,null,null,null,null,null,null,null,{"$f":"AG10","v":0}]
[]
[null,null,null,null,null,null,null,null,null,null,null,null,null,null,null,null,null,null,null,null,null,null,null,null,null,null,null,null,null,null,null,null,{"$f":"AG12","v":"00:00:00"}]
[]
[]
[]
[]
[]
[null,null,null,null,null,null,"ELEKTRİKSEL GÜVENLİK TESTİ"]
[null,null,null,null,null,null,"Test Tipi",null,null,null,null,null,null,null,"Ölçüm",null,null,null,"Alt Limit",null,null,null,"Üst Limit",null,null,null,"BF/CF",null,null,"Sonuç"]
[null,null,null,null,null,null,"Şebeke Gerilimi  ",null,null,null,null,null,null,null,{"$f":"'EGT Testi'!$B$2","v":219},null,null,null,"207 V",null,null,null,"253 V",null,null,null,"N/A",null,null,"√"]
[null,null,null,null,null,null,"Yük Akımı [A]",null,null,null,null,null,null,null,{"$f":"'EGT Testi'!$C$2","v":0.67300000000000004},null,null,null,"0 A",null,null,null,"16 A",null,null,null,"N/A",null,null,"√"]
[null,null,null,null,null,null,"Toprak Direnci [ohm]@1A",null,null,null,null,null,null,null,{"$f":"'EGT Testi'!$D$2","v":0.02},null,null,null,"0 Ω",null,null,null,"0,2 Ω",null,null,null,"N/A",null,null,"√"]
[null,null,null,null,null,null,"Toprak Kaçak Akım-NC [µA]",null,null,null,null,null,null,null,{"$f":"'EGT Testi'!$E$2","v":410},null,null,null,"0 μA",null,null,null,"500 μA",null,null,null,"N/A",null,null,"√"]
[null,null,null,null,null,null,"Toprak Kaçak Akım-SFC [µA]",null,null,null,null,null,null,null,{"$f":"'EGT Testi'!$F$2","v":721},null,null,null,"0 μA",null,null,null,"1000 μA",null,null,null,"N/A",null,null,"√"]
[null,null,null,null,null,null,"Gövde Kaçak-NC- [µA]",null,null,null,null,null,null,null,{"$f":"'EGT Testi'!$G$2","v":5},null,null,null,"0 μA",null,null,null,"100 μA",null,null,null,"N/A",null,null,"√"]
[null,null,null,null,null,null,"Gövde Kaçak-SFC- PE [µA]",null,null,null,null,null,null,null,{"$f":"'EGT Testi'!$H$2","v":286},null,null,null,"0 μA",null,null,null,"500 μA",null,null,null,"N/A",null,null,"√"]
[null,null,null,null,null,null,"Gövde Kaçak-SFC-LINE [µA]",null,null,null,null,null,null,null,{"$f":"'EGT Testi'!$I$2","v":404},null,null,null,"0 μA",null,null,null,"500 μA",null,null,null,"N/A",null,null,"√"]
[null,null,null,null,null,null,"İzolasyon Direnci [MOhm]",null,null,null,null,null,null,null,{"$f":"'EGT Testi'!$K$2","v":92},null,null,null,"50 mΩ",null,null,null,"-",null,null,null,"N/A",null,null,"√"]
[null,null,null,null,null,null,"Hasta Kaçak [mA] EKG LEAD1",null,null,null,null,null,null,null,{"$f":"'EGT Testi'!$M$2","v":7.4999999999999997E-3},null,null,null,"0 mA",null,null,null,0.01,null,null,null,"CF",null,null,"√"]
[null,null,null,null,null,null,"Hasta Kaçak [mA] EKG LEAD2",null,null,null,null,null,null,null,{"$f":"'EGT Testi'!$N$2","v":8.0000000000000002E-3},null,null,null,"0 mA",null,null,null,0.01,null,null,null,"CF",null,null,"√"]
[null,null,null,null,null,null,"Hasta Kaçak [mA] EKG LEAD3",null,null,null,null,null,null,null,{"$f":"'EGT Testi'!$O$2","v":1.4E-3},null,null,null,"0 mA",null,null,null,0.01,null,null,null,"CF",null,null,"√"]
[null,null,null,null,null,null,"Hasta Kaçak [mA] EKG LEAD4",null,null,null,null,null,null,null,{"$f":"'EGT Testi'!$P$2","v":6.3E-3},null,null,null,"0 mA",null,null,null,0.01,null,null,null,"CF",null,null,"√"]
[null,null,null,null,null,null,"Hasta Kaçak [mA] EKG LEAD5",null,null,null,null,null,null,null,{"$f":"'EGT Testi'!$Q$2","v":5.7000000000000002E-3},null,null,null,"0 mA",null,null,null,0.01,null,null,null,"CF",null,null,"√"]
[null,null,null,null,null,null,"Hasta Kaçak [mA] EKG LEAD6",null,null,null,null,null,null,null,{"$f":"'EGT Testi'!$R$2","v":2.8999999999999998E-3},null,null,null,"0 mA",null,null,null,0.01,null,null,null,"CF",null,null,"√"]
[null,null,null,null,null,null,"Hasta Kaçak [mA] EKG LEAD7",null,null,null,null,null,null,null,{"$f":"'EGT Testi'!$S$2","v":8.5000000000000006E-3},null,null,null,"0 mA",null,null,null,0.01,null,null,null,"CF",null,null,"√"]
[null,null,null,null,null,null,"Hasta Kaçak [mA] EKG LEAD8",null,null,null,null,null,null,null,{"$f":"'EGT Testi'!$T$2","v":1.6999999999999999E-3},null,null,null,"0 mA",null,null,null,0.01,null,null,null,"CF",null,null,"√"]
[null,null,null,null,null,null,"Hasta Kaçak [mA] EKG LEAD9",null,null,null,null,null,null,null,{"$f":"'EGT Testi'!$U$2","v":7.4000000000000003E-3},null,null,null,"0 mA",null,null,null,0.01,null,null,null,"CF",null,null,"√"]
[null,null,null,null,null,null,"Hasta Kaçak [mA] EKG LEAD10",null,null,null,null,null,null,null,{"$f":"'EGT Testi'!$V$2","v":8.5000000000000006E-3},null,null,null,"0 mA",null,null,null,0.01,null,null,null,"CF",null,null,"√"]
[]
[null,null,null,null,null,null,"EKG NABIZ TESTİ - YETİŞKİN"]
[null,null,null,null,null,null,"Ölçüm Parametresi",null,null,null,null,null,null,null,"Ayarlanan\nBPM",null,null,null,"Ölçülen\nBPM",null,null,null,"Sapma\nBPM",null,null,"Belirsizlik\nBPM",null,null,null,"Sonuç"]
[]
[null,null,null,null,null,null,"NSR YETİŞKİN\nGenlik 80 ms\n-\nNSR ADULT\nQRS Width 80 ms",null,null,null,null,null,null,null,60,null,null,null,{"$f":"IF(Bilgiler!$S$2=\"X\",\" \",IF('PERFORMANS Testi'!$B$2=\"\",RANDBETWEEN(59,61),'PERFORMANS Testi'!$B$2))","v":61},null,null,null,{"$f":"IF(Bilgiler!$S$2=\"X\",\" \",S166-O166)","v":1},null,null,{"$f":"IF(Bilgiler!$S$2=\"X\",\" \",SQRT((0.0005*S166)^2+(0.005*SQRT(S166))^2))","v":4.9550479311506163E-2},null,null,null,{"$f":"IF(Bilgiler!$S$2=\"X\",\" \",IF(OR(W166<-5,W166>5),\"X\",\"√\"))","v":"√"}]
[null,null,null,null,null,null,null,null,null,null,null,null,null,null,80,null,null,null,{"$f":"IF(Bilgiler!$S$2=\"X\",\" \",IF('PERFORMANS Testi'!$C$2=\"\",RANDBETWEEN(79,81),'PERFORMANS Testi'!$C$2))","v":80},null,null,null,{"$f":"IF(Bilgiler!$S$2=\"X\",\" \",S167-O167)","v":0},null,null,{"$f":"IF(Bilgiler!$S$2=\"X\",\" \",SQRT((0.0005*S167)^2+(0.005*SQRT(S167))^2))","v":0.06},null,null,null,{"$f":"IF(Bilgiler!$S$2=\"X\",\" \",IF(OR(W167<-5,W167>5),\"X\",\"√\"))","v":"√"}]
[null,null,null,null,null,null,null,null,null,null,null,null,null,null,120,null,null,null,{"$f":"IF(Bilgiler!$S$2=\"X\",\" \",IF('PERFORMANS Testi'!$D$2=\"\",RANDBETWEEN(119,121),'PERFORMANS Testi'!$D$2))","v":121},null,null,null,{"$f":"IF(Bilgiler!$S$2=\"X\",\" \",S168-O168)","v":1},null,null,{"$f":"IF(Bilgiler!$S$2=\"X\",\" \",SQRT((0.0005*S168)^2+(0.005*SQRT(S168))^2))","v":8.1763378110251778E-2},null,null,null,{"$f":"IF(Bilgiler!$S$2=\"X\",\" \",IF(OR(W168<-5,W168>5),\"X\",\"√\"))","v":"√"}]
[null,null,null,null,null,null,null,null,null,null,null,null,null,null,180,null,null,null,{"$f":"IF(Bilgiler!$S$2=\"X\",\" \",IF('PERFORMANS Testi'!$E$2=\"\",RANDBETWEEN(179,181),'PERFORMANS Testi'!$E$2))","v":180},null,null,null,{"$f":"IF(Bilgiler!$S$2=\"X\",\" \",S169-O169)","v":0},null,null,{"$f":"IF(Bilgiler!$S$2=\"X\",\" \",SQRT((0.0005*S169)^2+(0.005*SQRT(S169))^2))","v":0.11224972160321824},null,null,null,{"$f":"IF(Bilgiler!$S$2=\"X\",\" \",IF(OR(W169<-5,W169>5),\"X\",\"√\"))","v":"√"}]
[null,null,null,null,null,null,null,null,null,null,null,null,null,null,200,null,null,null,{"$f":"IF(Bilgiler!$S$2=\"X\",\" \",IF('PERFORMANS Testi'!$F$2=\"\",RANDBETWEEN(199,201),'PERFORMANS Testi'!$F$2))","v":199},null,null,null,{"$f":"IF(Bilgiler!$S$2=\"X\",\" \",S170-O170)","v":-1},null,null,{"$f":"IF(Bilgiler!$S$2=\"X\",\" \",SQRT((0.0005*S170)^2+(0.005*SQRT(S170))^2))","v":0.12196413407227553},null,null,null,{"$f":"IF(Bilgiler!$S$2=\"X\",\" \",IF(OR(W170<-5,W170>5),\"X\",\"√\"))","v":"√"}]
[null,null,null,null,null,null,null,null,null,null,null,null,null,null,240,null,null,null,{"$f":"IF(Bilgiler!$S$2=\"X\",\" \",IF('PERFORMANS Testi'!$G$2=\"\",RANDBETWEEN(239,241),'PERFORMANS Testi'!$G$2))","v":239},null,null,null,{"$f":"IF(Bilgiler!$S$2=\"X\",\" \",S171-O171)","v":-1},null,null,{"$f":"IF(Bilgiler!$S$2=\"X\",\" \",SQRT((0.0005*S171)^2+(0.005*SQRT(S171))^2))","v":0.1423209401318021},null,null,null,{"$f":"IF(Bilgiler!$S$2=\"X\",\" \",IF(OR(W171<-5,W171>5),\"X\",\"√\"))","v":"√"}]
[null,null,null,null,null,null,null,null,null,null,null,null,null,null,300,null,null,null,{"$f":"IF(Bilgiler!$S$2=\"X\",\" \",IF('PERFORMANS Testi'!$H$2=\"\",RANDBETWEEN(299,301),'PERFORMANS Testi'!$H$2))","v":299},null,null,null,{"$f":"IF(Bilgiler!$S$2=\"X\",\" \",S172-O172)","v":-1},null,null,{"$f":"IF(Bilgiler!$S$2=\"X\",\" \",SQRT((0.0005*S172)^2+(0.005*SQRT(S172))^2))","v":0.17269988419220206},null,null,null,{"$f":"IF(Bilgiler!$S$2=\"X\",\" \",IF(OR(W172<-5,W172>5),\"X\",\"√\"))","v":"√"}]
[]
[null,null,null,null,null,null,"EKG NABIZ TESTİ - PEDİATRİK"]
[null,null,null,null,null,null,"Ölçüm Parametresi",null,null,null,null,null,null,null,"Ayarlanan\nBPM",null,null,null,"Ölçülen\nBPM",null,null,null,"Sapma\nBPM",null,null,"Belirsizlik\nBPM",null,null,null,"Sonuç"]
[]
[null,null,null,null,null,null,"NSR PEDİATRİK\nQRS Genlik 40 ms\n-\nNSR Pediatric\nQRS width 40ms",null,null,null,null,null,null,null,60,null,null,null,{"$f":"IF(Bilgiler!$S$2=\"X\",\" \",IF('PERFORMANS Testi'!$B$2=\"\",RANDBETWEEN(59,61),'PERFORMANS Testi'!$B$2))","v":59},null,null,null,{"$f":"IF(Bilgiler!$S$2=\"X\",\" \",S177-O177)","v":-1},null,null,{"$f":"IF(Bilgiler!$S$2=\"X\",\" \",SQRT((0.0005*S177)^2+(0.005*SQRT(S177))^2))","v":4.8427781283061071E-2},null,null,null,{"$f":"IF(Bilgiler!$S$2=\"X\",\" \",IF(OR(W177<-5,W177>5),\"X\",\"√\"))","v":"√"}]
[null,null,null,null,null,null,null,null,null,null,null,null,null,null,80,null,null,null,{"$f":"IF(Bilgiler!$S$2=\"X\",\" \",IF('PERFORMANS Testi'!$C$2=\"\",RANDBETWEEN(79,81),'PERFORMANS Testi'!$C$2))","v":79},null,null,null,{"$f":"IF(Bilgiler!$S$2=\"X\",\" \",S178-O178)","v":-1},null,null,{"$f":"IF(Bilgiler!$S$2=\"X\",\" \",SQRT((0.0005*S178)^2+(0.005*SQRT(S178))^2))","v":5.9457968347396466E-2},null,null,null,{"$f":"IF(Bilgiler!$S$2=\"X\",\" \",IF(OR(W178<-5,W178>5),\"X\",\"√\"))","v":"√"}]
[null,null,null,null,null,null,null,null,null,null,null,null,null,null,120,null,null,null,{"$f":"IF(Bilgiler!$S$2=\"X\",\" \",IF('PERFORMANS Testi'!$D$2=\"\",RANDBETWEEN(119,121),'PERFORMANS Testi'!$D$2))","v":121},null,null,null,{"$f":"IF(Bilgiler!$S$2=\"X\",\" \",S179-O179)","v":1},null,null,{"$f":"IF(Bilgiler!$S$2=\"X\",\" \",SQRT((0.0005*S179)^2+(0.005*SQRT(S179))^2))","v":8.1763378110251778E-2},null,null,null,{"$f":"IF(Bilgiler!$S$2=\"X\",\" \",IF(OR(W179<-5,W179>5),\"X\",\"√\"))","v":"√"}]
[null,null,null,null,null,null,null,null,null,null,null,null,null,null,180,null,null,null,{"$f":"IF(Bilgiler!$S$2=\"X\",\" \",IF('PERFORMANS Testi'!$E$2=\"\",RANDBETWEEN(179,181),'PERFORMANS Testi'!$E$2))","v":179},null,null,null,{"$f":"IF(Bilgiler!$S$2=\"X\",\" \",S180-O180)","v":-1},null,null,{"$f":"IF(Bilgiler!$S$2=\"X\",\" \",SQRT((0.0005*S180)^2+(0.005*SQRT(S180))^2))","v":0.11173741539878215},null,null,null,{"$f":"IF(Bilgiler!$S$2=\"X\",\" \",IF(OR(W180<-5,W180>5),\"X\",\"√\"))","v":"√"}]
[null,null,null,null,null,null,null,null,null,null,null,null,null,null,200,null,null,null,{"$f":"IF(Bilgiler!$S$2=\"X\",\" \",IF('PERFORMANS Testi'!$F$2=\"\",RANDBETWEEN(199,201),'PERFORMANS Testi'!$F$2))","v":199},null,null,null,{"$f":"IF(Bilgiler!$S$2=\"X\",\" \",S181-O181)","v":-1},null,null,{"$f":"IF(Bilgiler!$S$2=\"X\",\" \",SQRT((0.0005*S181)^2+(0.005*SQRT(S181))^2))","v":0.12196413407227553},null,null,null,{"$f":"IF(Bilgiler!$S$2=\"X\",\" \",IF(OR(W181<-5,W181>5),\"X\",\"√\"))","v":"√"}]
[null,null,null,null,null,null,null,null,null,null,null,null,null,null,240,null,null,null,{"$f":"IF(Bilgiler!$S$2=\"X\",\" \",IF('PERFORMANS Testi'!$G$2=\"\",RANDBETWEEN(239,241),'PERFORMANS Testi'!$G$2))","v":239},null,null,null,{"$f":"IF(Bilgiler!$S$2=\"X\",\" \",S182-O182)","v":-1},null,null,{"$f":"IF(Bilgiler!$S$2=\"X\",\" \",SQRT((0.0005*S182)^2+(0.005*SQRT(S182))^2))","v":0.1423209401318021},null,null,null,{"$f":"IF(Bilgiler!$S$2=\"X\",\" \",IF(OR(W182<-5,W182>5),\"X\",\"√\"))","v":"√"}]
[null,null,null,null,null,null,null,null,null,null,null,null,null,null,300,null,null,null,{"$f":"IF(Bilgiler!$S$2=\"X\",\" \",IF('PERFORMANS Testi'!$H$2=\"\",RANDBETWEEN(299,301),'PERFORMANS Testi'!$H$2))","v":300},null,null,null,{"$f":"IF(Bilgiler!$S$2=\"X\",\" \",S183-O183)","v":0},null,null,{"$f":"IF(Bilgiler!$S$2=\"X\",\" \",SQRT((0.0005*S183)^2+(0.005*SQRT(S183))^2))","v":0.17320508075688773},null,null,null,{"$f":"IF(Bilgiler!$S$2=\"X\",\" \",IF(OR(W183<-5,W183>5),\"X\",\"√\"))","v":"√"}]
[]
[null,null,null,null,null,null,"DALGA ŞEKLİ TESTİ 1",null,null,null,null,null,null,null,null,null,null,null,null,null,"DALGA ŞEKLİ TESTİ 2"]
[null,null,null,null,null,null,"Dalga Şekli",null,null,null,null,"Ayarlanan Hz",null,null,null,"Sonuç",null,null,null,null,"Dalga Şekli",null,null,null,null,"Ayarlanan Hz",null,null,null,"Sonuç"]
[null,null,null,null,null,null,"Sinüs",null,null,null,null,5,null,null,null,{"$f":"IF(Bilgiler!$S$2=\"X\",\" \",IF('PERFORMANS Testi'!$I$2=\"\",\"√\",'PERFORMANS Testi'!$I$2))","v":"√"},null,null,null,null,"Kare",null,null,null,null,2,null,null,null,{"$f":"IF(Bilgiler!$S$2=\"X\",\" \",IF('PERFORMANS Testi'!$J$2=\"\",\"√\",'PERFORMANS Testi'!$J$2))","v":"√"}]
[]
[]
[]
[]
[null,"Bu sertifika, laboratuarın yazılı izni olmadan kısmen veya tamamen kopyalanıp çoğaltılamaz. İmzasız sertifikalar geçersizdir."]
[null,"The certificate can not be fully or partly reproduced without the permission of the laboratory.Calibration certificates without signature are not valid."]
[null,"MB4001/ Yay.tar: 04.12.2008 /Rev.tar: 23.01.2024/Rev.no: 7",null,null,null,null,null,null,null,null,null,null,null,null,null,null,null,null,null,null,null,null,null,null,"Sayfa No / Number of Pages:",null,null,null,null,null,null,null,null,null,3,"/",4]
[]
[]
[null,null,null,null,null,null,null,null,null,null,null,null,null,null,null,null,null,null,null,null,null,null,null,null,null,null,null,null,null,null,null,null,{"$f":"AG8","v":"AB-1251-T"}]
[]
[null,null,null,null,null,null,null,null,null,null,null,null,null,null,null,null,null,null,null,null,null,null,null,null,null,null,null,null,null,null,null,null,{"$f":"AG10","v":0}]
[]
[null,null,null,null,null,null,null,null,null,null,null,null,null,null,null,null,null,null,null,null,null,null,null,null,null,null,null,null,null,null,null,null,{"$f":"AG12","v":"00:00:00"}]
[]
[]
[]
[]
[]
[]
[null,null,null,null,null,null,"YAZICI TESTİ ( Kriter +/- %2)",null,null,null,null,null,null,null,null,null,null,null,null,null,"DUYARLILIK TESTİ"]
[null,null,null,null,null,null,"Ölçüm Parametresi",null,null,null,null,null,null,null,"Sonuç",null,null,null,null,null,"Ölçüm Parametresi",null,null,null,null,null,null,null,"Sonuç"]
[null,null,null,null,null,null,"25 mm/s (60bpm)",null,null,null,null,null,null,null,{"$f":"IF(Bilgiler!$S$2=\"X\",\" \",IF('PERFORMANS Testi'!$K$2=\"\",\"√\",'PERFORMANS Testi'!$K$2))","v":"√"},null,null,null,null,null,"2,5 mm/mV",null,null,null,null,null,null,null,{"$f":"IF(Bilgiler!$S$2=\"X\",\" \",IF('PERFORMANS Testi'!$L$2=\"\",\"√\",'PERFORMANS Testi'!$L$2))","v":"√"}]
[]
[null,null,null,null,null,null,"ST YÜKSELME VE ÇÖKME",null,null,null,null,null,null,null,null,null,null,null,null,null,"ALARM TESTLERİ"]
[null,null,null,null,null,null,"Ölçüm Parametresi",null,null,null,null,null,null,null,"Sonuç",null,null,null,null,null,"Ölçüm Parametresi",null,null,null,null,null,null,null,"Sonuç"]
[null,null,null,null,null,null,"+ 0,8mV",null,null,null,null,null,null,null,{"$f":"IF(Bilgiler!$S$2=\"X\",\" \",IF('PERFORMANS Testi'!$M$2=\"\",\"√\",'PERFORMANS Testi'!$M$2))","v":"√"},null,null,null,null,null,"Alt Limit",null,null,null,null,null,null,null,{"$f":"IF(Bilgiler!$S$2=\"X\",\" \",IF('PERFORMANS Testi'!$O$2=\"\",\"√\",'PERFORMANS Testi'!$O$2))","v":"√"}]
[null,null,null,null,null,null,"- 0,8mV",null,null,null,null,null,null,null,{"$f":"IF(Bilgiler!$S$2=\"X\",\" \",IF('PERFORMANS Testi'!$N$2=\"\",\"√\",'PERFORMANS Testi'!$N$2))","v":"√"},null,null,null,null,null,"Üst Limit",null,null,null,null,null,null,null,{"$f":"IF(Bilgiler!$S$2=\"X\",\" \",IF('PERFORMANS Testi'!$P$2=\"\",\"√\",'PERFORMANS Testi'!$P$2))","v":"√"}]
[]
[null,null,null,null,null,null,"ARİTMİ TESTİ"]
[null,null,null,null,null,null,"Ölçüm Parametresi",null,null,null,null,null,null,null,"Sonuç"]
[null,null,null,null,null,null,"Bigeminy",null,null,null,null,null,null,null,{"$f":"IF(Bilgiler!$S$2=\"X\",\" \",IF('PERFORMANS Testi'!$Q$2=\"\",\"√\",'PERFORMANS Testi'!$Q$2))","v":"√"}]
[null,null,null,null,null,null,"Trigeminy",null,null,null,null,null,null,null,{"$f":"IF(Bilgiler!$S$2=\"X\",\" \",IF('PERFORMANS Testi'!$R$2=\"\",\"√\",'PERFORMANS Testi'!$R$2))","v":"√"}]
[null,null,null,null,null,null,"Ventricular Tachycardia",null,null,null,null,null,null,null,{"$f":"IF(Bilgiler!$S$2=\"X\",\" \",IF('PERFORMANS Testi'!$S$2=\"\",\"√\",'PERFORMANS Testi'!$S$2))","v":"√"}]
[null,null,null,null,null,null,"Ventricular Fibrilation",null,null,null,null,null,null,null,{"$f":"IF(Bilgiler!$S$2=\"X\",\" \",IF('PERFORMANS Testi'!$T$2=\"\",\"√\",'PERFORMANS Testi'!$T$2))","v":"√"}]
[null,null,null,null,null,null,"Atrial Tachycardia",null,null,null,null,null,null,null,{"$f":"IF(Bilgiler!$S$2=\"X\",\" \",IF('PERFORMANS Testi'!$U$2=\"\",\"√\",'PERFORMANS Testi'!$U$2))","v":"√"}]
[null,null,null,null,null,null,"Atrial Fibrilation",null,null,null,null,null,null,null,{"$f":"IF(Bilgiler!$S$2=\"X\",\" \",IF('PERFORMANS Testi'!$V$2=\"\",\"√\",'PERFORMANS Testi'!$V$2))","v":"√"}]
[null,null,null,null,null,null,"Asystole",null,null,null,null,null,null,null,{"$f":"IF(Bilgiler!$S$2=\"X\",\" \",IF('PERFORMANS Testi'!$W$2=\"\",\"√\",'PERFORMANS Testi'!$W$2))","v":"√"}]
[]
[null,null,null,null,null,null,"FİZİKSEL KONTROL"]
[null,null,null,null,null,null,"Kontrol Edilen Bölgeler",null,null,null,null,null,null,null,null,null,null,null,null,null,null,null,null,null,null,null,null,null,null,"Sonuç"]
[null,null,null,null,null,null,"Genel fiziksel kontrol",null,null,null,null,null,null,null,null,null,null,null,null,null,null,null,null,null,null,null,null,null,null,{"$f":"IF(Bilgiler!$S$2=\"X\",IF('PERFORMANS Testi'!$X$2=\"\",\"√\",'PERFORMANS Testi'!$X$2),\"√\")","v":"√"}]
[null,null,null,null,null,null,"Şase Dış Muhafaza",null,null,null,null,null,null,null,null,null,null,null,null,null,null,null,null,null,null,null,null,null,null,{"$f":"IF(Bilgiler!$S$2=\"X\",IF('PERFORMANS Testi'!$Y$2=\"\",\"√\",'PERFORMANS Testi'!$Y$2),\"√\")","v":"√"}]
[null,null,null,null,null,null,"Gösterge ve LCD ekran ve paneller",null,null,null,null,null,null,null,null,null,null,null,null,null,null,null,null,null,null,null,null,null,null,{"$f":"IF(Bilgiler!$S$2=\"X\",IF('PERFORMANS Testi'!$Z$2=\"\",\"√\",'PERFORMANS Testi'!$Z$2),\"√\")","v":"√"}]
[null,null,null,null,null,null,"Montaj ve Yerleşimler",null,null,null,null,null,null,null,null,null,null,null,null,null,null,null,null,null,null,null,null,null,null,{"$f":"IF(Bilgiler!$S$2=\"X\",IF('PERFORMANS Testi'!$AA$2=\"\",\"√\",'PERFORMANS Testi'!$AA$2),\"√\")","v":"√"}]
[null,null,null,null,null,null,"Besleme, Elektrik kablo ve prizleri",null,null,null,null,null,null,null,null,null,null,null,null,null,null,null,null,null,null,null,null,null,null,{"$f":"IF(Bilgiler!$S$2=\"X\",IF('PERFORMANS Testi'!$AB$2=\"\",\"√\",'PERFORMANS Testi'!$AB$2),\"√\")","v":"√"}]
[null,null,null,null,null,null,"Butonlar, düğmeler",null,null,null,null,null,null,null,null,null,null,null,null,null,null,null,null,null,null,null,null,null,null,{"$f":"IF(Bilgiler!$S$2=\"X\",IF('PERFORMANS Testi'!$AC$2=\"\",\"√\",'PERFORMANS Testi'!$AC$2),\"√\")","v":"√"}]
[null,null,null,null,null,null,"Alarm ses ve lamba/ledleri",null,null,null,null,null,null,null,null,null,null,null,null,null,null,null,null,null,null,null,null,null,null,{"$f":"IF(Bilgiler!$S$2=\"X\",IF('PERFORMANS Testi'!$AD$2=\"\",\"√\",'PERFORMANS Testi'!$AD$2),\"√\")","v":"√"}]
[null,null,null,null,null,null,"Pil – Akü ve Batarya Fiziksel kontrol",null,null,null,null,null,null,null,null,null,null,null,null,null,null,null,null,null,null,null,null,null,null,{"$f":"IF(Bilgiler!$S$2=\"X\",IF('PERFORMANS Testi'!$AE$2=\"\",\"√\",'PERFORMANS Testi'!$AE$2),\"√\")","v":"√"}]
[null,null,null,null,null,null,"Tekerlek ve frenler",null,null,null,null,null,null,null,null,null,null,null,null,null,null,null,null,null,null,null,null,null,null,{"$f":"IF(Bilgiler!$S$2=\"X\",IF('PERFORMANS Testi'!$AF$2=\"\",\"√\",'PERFORMANS Testi'!$AF$2),\"√\")","v":"√"}]
[null,null,null,null,null,null,"Etiketler ve Uyarı İşaretleri",null,null,null,null,null,null,null,null,null,null,null,null,null,null,null,null,null,null,null,null,null,null,{"$f":"IF(Bilgiler!$S$2=\"X\",IF('PERFORMANS Testi'!$AG$2=\"\",\"√\",'PERFORMANS Testi'!$AG$2),\"√\")","v":"√"}]
[null,null,null,null,null,null,"Elektrodlar",null,null,null,null,null,null,null,null,null,null,null,null,null,null,null,null,null,null,null,null,null,null,{"$f":"IF(Bilgiler!$S$2=\"X\",IF('PERFORMANS Testi'!$AG$2=\"\",\"√\",'PERFORMANS Testi'!$AG$2),\"√\")","v":"√"}]
[null,null,null,null,null,null,"Yazıcı ve Kağıt yükleme-besleme, ",null,null,null,null,null,null,null,null,null,null,null,null,null,null,null,null,null,null,null,null,null,null,{"$f":"IF(Bilgiler!$S$2=\"X\",IF('PERFORMANS Testi'!$AG$2=\"\",\"√\",'PERFORMANS Testi'!$AG$2),\"√\")","v":"√"}]
[null,null,null,null,null,null,"Yazıcı baskı belirginlik ve iz kalitesi,",null,null,null,null,null,null,null,null,null,null,null,null,null,null,null,null,null,null,null,null,null,null,{"$f":"IF(Bilgiler!$S$2=\"X\",IF('PERFORMANS Testi'!$AG$2=\"\",\"√\",'PERFORMANS Testi'!$AG$2),\"√\")","v":"√"}]
[null,null,null,null,null,null,"Kağıt Sürme,",null,null,null,null,null,null,null,null,null,null,null,null,null,null,null,null,null,null,null,null,null,null,{"$f":"IF(Bilgiler!$S$2=\"X\",IF('PERFORMANS Testi'!$AG$2=\"\",\"√\",'PERFORMANS Testi'!$AG$2),\"√\")","v":"√"}]
[]
[]
[]
[null,null,"UZMAN GÖRÜŞÜ",null,null,null,{"$f":"Bilgiler!W2","v":0}]
[]
[]
[]
[]
[]
[]
[]
[]
[]
[null,"Bu sertifika, laboratuarın yazılı izni olmadan kısmen veya tamamen kopyalanıp çoğaltılamaz. İmzasız sertifikalar geçersizdir."]
[null,"The certificate can not be fully or partly reproduced without the permission of the laboratory.Calibration certificates without signature are not valid."]
[null,"MB4001/ Yay.tar: 04.12.2008 /Rev.tar: 23.01.2024/Rev.no: 7",null,null,null,null,null,null,null,null,null,null,null,null,null,null,null,null,null,null,null,null,null,null,"Sayfa No / Number of Pages:",null,null,null,null,null,null,null,null,null,4,"/",4]

{"sheet":"EGT Testi","index":3,"n_rows":2,"n_cols":23,"rows_kept":2,"cut":false,"hidden":false,"merged":[]}
["Id","ŞEBEKE GERİLİMİ [v]","YÜK AKIMI [a]","TOPRAK DİRENCİ","TOPRAK-KACAK-NC-µA","TOPRAK-KACAK-SFC-µA","GÖVDE-KAÇAK-NC","GÖVDE-KAÇAK-SFC-PE","GÖVDE-KAÇAK-SFC-LINE","GÜÇ","İZOLASYON-DİRENCİ","EKİPMAN-KAÇAK µA","HASTA-KACAK1","HASTA-KACAK2","HASTA-KACAK3","HASTA-KACAK4","HASTA-KACAK5","HASTA-KACAK6","HASTA-KACAK7","HASTA-KACAK8","HASTA-KACAK9","HASTA-KACAK10","EGT UZMAN GÖRÜŞÜ"]
[1,{"$f":"RANDBETWEEN(207,245)","v":219},{"$f":"RANDBETWEEN(0,16)/100+RANDBETWEEN(100,900)/1000","v":0.67300000000000004},{"$f":"RANDBETWEEN(0,2)/50+RANDBETWEEN(1,10)/100","v":0.02},{"$f":"RANDBETWEEN(20,480)","v":410},{"$f":"RANDBETWEEN(20,980)","v":721},{"$f":"RANDBETWEEN(4,92)","v":5},{"$f":"RANDBETWEEN(40,420)","v":286},{"$f":"RANDBETWEEN(40,420)","v":404},{"$f":"RANDBETWEEN(40,150)+RANDBETWEEN(1,9)/10","v":144.5},{"$f":"RANDBETWEEN(81,120)","v":92},{"$f":"RANDBETWEEN(68,385)","v":231},{"$f":"RANDBETWEEN(8,98)/10000","v":7.4999999999999997E-3},{"$f":"RANDBETWEEN(8,98)/10000","v":8.0000000000000002E-3},1.4E-3,6.3E-3,5.7000000000000002E-3,2.8999999999999998E-3,8.5000000000000006E-3,1.6999999999999999E-3,7.4000000000000003E-3,8.5000000000000006E-3,"Cihaz;  IEC60601-1 standartlarına göre Elektriksel Güvenlik Ölçüm testlerinden geçmiştir."]

{"sheet":"PERFORMANS Testi","index":4,"n_rows":5,"n_cols":52,"rows_kept":5,"cut":false,"hidden":false,"merged":[]}
["id","O1","O2","O3","O4","O5","O6","O7","O8","O9","O10","O11","O12","O13","O14","O15","O16","O17","O18","O19","O20","O21","O22","O23","O24","O25","O26","O27","O28","O29","O30","O31","O32","O33","O34","O35","O36","O37","O38","O39","O40","O41","O42","O43","O44","O45","O46","O47","O48","O49","O50","rapor_no"]
[1]
[null,"1. ÖLÇ","2. ÖLÇ","3. ÖLÇ","4. ÖLÇ","5. ÖLÇ","6. ÖLÇ","7. ÖLÇ",null,null,null,null,null,null,null,null,null,null,null,null,null,null,null,"F1","F2","F3","F4","F5","F6","F7","F8","F9","F10"]
[null,60,80,120,180,200,240,300]
[null,"EKG NABIZ TESTİ",null,null,null,null,null,null,"DALGA ŞEKLİ TESTİ 1","DALGA ŞEKLİ TESTİ 2","YAZICI TESTİ ","DUYARLILIK TESTİ","ST YÜKSELME VE ÇÖKME",null,"ALARM TESTLERİ",null,"ARRYTHMIA TEST",null,null,null,null,null,null,"FİZİKSEL KONTROL"]